fUST/lending_fUST_20240220
["ID","MTS","AMOUNT","RATE_DAILY","PERIOD"]
[314527106,1708405840285,-500.0,0.00021917,2]
[314527107,1708405840294,-500.0,0.00021917,2]
[314527109,1708405840303,-500.0,0.00021917,2]
[314527111,1708405840311,-500.0,0.00021917,2]
[314527113,1708405840320,-500.0,0.00021917,2]
[314527115,1708405840329,-500.0,0.00021917,2]
[314527117,1708405840339,-500.0,0.00021917,2]
[314527119,1708405840347,-500.0,0.00021917,2]
[314527121,1708405840357,-500.0,0.00021917,2]
[314527123,1708405840368,-500.0,0.00021917,2]
[314527125,1708405840378,-500.0,0.00021917,2]
[314527128,1708405840388,-500.0,0.00021917,2]
[314527130,1708405840396,-500.0,0.00021917,2]
[314527132,1708405840406,-616.48012052,0.00021917,2]
[314527134,1708405840415,-500.0,0.00021917,2]
[314527136,1708405840424,-500.0,0.00021917,2]
[314527138,1708405840433,-252.20884706,0.00021917,2]
[314527140,1708405840442,-500.34114932,0.00021917,2]
[314527142,1708405840451,-501.37653749,0.00021917,2]
[314527144,1708405840459,-528.36434061,0.00021917,2]
[314527145,1708405840469,-500.0,0.00021917,2]
[314527147,1708405840478,-500.0,0.00021917,2]
[314527149,1708405840487,-500.0,0.00021917,2]
[314527151,1708405840496,-500.0,0.00021917,2]
[314527153,1708405840505,-2715.83,0.00021917,2]
[314527155,1708405840515,-500.0,0.00021917,2]
[314527157,1708405840524,-598.33769882,0.00021917,2]
[314527159,1708405840532,-641.64302008,0.00021917,2]
[314527161,1708405840541,-500.0,0.00021917,2]
[314527163,1708405840550,-553.88,0.00021917,2]
[314527165,1708405840559,-626.48,0.00021917,2]
[314527167,1708405840568,-601.24999309,0.00021917,2]
[314527169,1708405840577,-500.0,0.00021917,2]
[314527171,1708405840586,-500.0,0.00021917,2]
[314527173,1708405840596,-187.0489976,0.00021917,2]
[314527175,1708405840605,-500.0,0.00021917,2]
[314527177,1708405840615,-753.03,0.00021917,2]
[314527179,1708405840624,-500.0,0.00021917,2]
[314527181,1708405840633,-500.0,0.00021917,2]
[314527183,1708405840641,-500.0,0.00021917,2]
[314527185,1708405840650,-500.0,0.00021917,2]
[314527186,1708405840659,-581.63580659,0.00021917,2]
[314527188,1708405840668,-500.0,0.00021917,2]
[314527190,1708405840677,-500.0,0.00021917,2]
[314527192,1708405840686,-500.0,0.00021917,2]
[314527194,1708405840695,-504.92,0.00021917,2]
[314527196,1708405840704,-500.0,0.00021917,2]
[314527198,1708405840713,-500.0,0.00021917,2]
[314527200,1708405840722,-500.0,0.00021917,2]
[314527202,1708405840731,-500.0,0.00021917,2]
[314527204,1708405840741,-701.27,0.00021917,2]
[314527206,1708405840751,-701.27,0.00021917,2]
[314527208,1708405840760,-701.27,0.00021917,2]
[314527210,1708405840769,-701.27,0.00021917,2]
[314527212,1708405840779,-500.0,0.00021917,2]
[314527214,1708405840788,-701.27,0.00021917,2]
[314527216,1708405840797,-701.27,0.00021917,2]
[314527218,1708405840807,-701.27,0.00021917,2]
[314527220,1708405840816,-613.25055346,0.00021917,2]
[314527222,1708405840826,-701.27,0.00021917,2]
[314527224,1708405840835,-701.27,0.00021917,2]
[314527226,1708405840844,-701.27,0.00021917,2]
[314527228,1708405840853,-701.27,0.00021917,2]
[314527230,1708405840862,-701.27,0.00021917,2]
[314527232,1708405840870,-701.27,0.00021917,2]
[314527234,1708405840879,-701.27,0.00021917,2]
[314527236,1708405840889,-1123.7,0.00021917,2]
[314527238,1708405840898,-701.27,0.00021917,2]
[314527240,1708405840907,-701.27,0.00021917,2]
[314527242,1708405840916,-701.27,0.00021917,2]
[314527244,1708405840925,-500.0,0.00021917,2]
[314527260,1708405841064,-701.27,0.00021917,2]
[314527262,1708405841077,-701.27,0.00021917,2]
[314527264,1708405841086,-500.0,0.00021917,2]
[314527266,1708405841096,-701.27,0.00021917,2]
[314527268,1708405841105,-701.27,0.00021917,2]
[314527270,1708405841114,-701.27,0.00021917,2]
[314527272,1708405841123,-701.27,0.00021917,2]
[314527273,1708405841133,-500.0,0.00021917,2]
[314527274,1708405841142,-701.43372589,0.00021917,2]
[314527275,1708405841150,-169.97417365,0.00021917,2]
[314527276,1708405841159,-500.0,0.00021917,2]
[314527277,1708405841168,-500.0,0.00021917,2]
[314527278,1708405841177,-500.0,0.00021917,2]
[314527279,1708405841186,-500.0,0.00021917,2]
[314527280,1708405841195,-573.64,0.00021917,2]
[314527281,1708405841203,-500.0,0.00021917,2]
[314527282,1708405841212,-500.0,0.00021917,2]
[314527283,1708405841221,-500.0,0.00021917,2]
[314527284,1708405841230,-486.42933984,0.00021917,2]
[314527285,1708405841239,-500.0,0.00021917,2]
[314527286,1708405841248,-500.0,0.00021917,2]
[314527287,1708405841258,-500.0,0.00021917,2]
[314527288,1708405841267,-587.63,0.00021917,2]
[314527289,1708405841276,-500.0,0.00021917,2]
[314527290,1708405841285,-1553.33,0.00021917,2]
[314527291,1708405841294,-1364.78,0.00021917,2]
[314527292,1708405841303,-500.0,0.00021917,2]
[314527293,1708405841312,-832.65,0.00021917,2]
[314527294,1708405841321,-509.03,0.00021917,2]
[314527296,1708405841330,-505.59237559,0.00021917,2]
[314527297,1708405841339,-606.80456975,0.00021917,2]
[314527299,1708405841349,-617.79,0.00021917,2]
[314527301,1708405841358,-500.0,0.00021917,2]
[314527303,1708405841367,-500.0,0.00021917,2]
[314527305,1708405841376,-500.0,0.00021917,2]
[314527307,1708405841386,-500.0,0.00021917,2]
[314527309,1708405841396,-740.27,0.00021917,2]
[314527311,1708405841406,-500.0,0.00021917,2]
[314527313,1708405841415,-500.0,0.00021917,2]
[314527315,1708405841424,-500.0,0.00021917,2]
[314527317,1708405841434,-500.0,0.00021917,2]
[314527319,1708405841444,-500.0,0.00021917,2]
[314527321,1708405841454,-669.33,0.00021917,2]
[314527323,1708405841463,-500.0,0.00021917,2]
[314527325,1708405841473,-500.0,0.00021917,2]
[314527327,1708405841483,-500.0,0.00021917,2]
[314527329,1708405841492,-506.2,0.00021917,2]
[314527331,1708405841502,-500.0,0.00021917,2]
[314527333,1708405841512,-500.0,0.00021917,2]
[314527335,1708405841523,-1386.23,0.00021917,2]
[314527337,1708405841533,-500.2659361,0.00021917,2]
[314527339,1708405841542,-500.0,0.00021917,2]
[314527341,1708405841551,-540.81,0.00021917,2]
[314527343,1708405841560,-500.0,0.00021917,2]
[314527345,1708405841568,-500.0,0.00021917,2]
[314527347,1708405841579,-317.35993342,0.00021917,2]
[314527349,1708405841589,-500.0,0.00021917,2]
[314527351,1708405841598,-500.0,0.00021917,2]
[314527353,1708405841608,-500.0,0.00021917,2]
[314527355,1708405841617,-500.0,0.00021917,2]
[314527357,1708405841626,-500.0,0.00021917,2]
[314527359,1708405841635,-500.0,0.00021917,2]
[314527361,1708405841645,-500.0,0.00021917,2]
[314527363,1708405841654,-500.0,0.00021917,2]
[314527365,1708405841663,-419.0443228,0.00021917,2]
[314527367,1708405841673,-350.63978889,0.00021917,2]
[314527369,1708405841682,-500.0,0.00021917,2]
[314527371,1708405841691,-511.27433003,0.00021917,2]
[314527373,1708405841700,-500.0,0.00021917,2]
[314527375,1708405841710,-2474.31,0.00021917,2]
[314527378,1708405841720,-500.0,0.00021917,2]
[314527380,1708405841729,-500.0,0.00021917,2]
[314527382,1708405841739,-500.0,0.00021917,2]
[314527384,1708405841748,-500.0,0.00021917,2]
[314527386,1708405841757,-500.0,0.00021917,2]
[314527388,1708405841766,-526.57,0.00021917,2]
[314527390,1708405841775,-500.0,0.00021917,2]
[314527392,1708405841784,-667.09,0.00021917,2]
[314527394,1708405841792,-5300.82,0.00021917,2]
[314527395,1708405841801,-500.0,0.00021917,2]
[314527397,1708405841811,-500.0,0.00021917,2]
[314527400,1708405841821,-500.0,0.00021917,2]
[314527402,1708405841830,-581.27271086,0.00021917,2]
[314527404,1708405841839,-500.0,0.00021917,2]
[314527406,1708405841848,-500.0,0.00021917,2]
[314527407,1708405841857,-500.0,0.00021917,2]
[314527409,1708405841867,-500.0,0.00021917,2]
[314527411,1708405841876,-500.0,0.00021917,2]
[314527413,1708405841885,-500.0,0.00021917,2]
[314527416,1708405841895,-500.0,0.00021917,2]
[314527417,1708405841905,-977.64,0.00021917,2]
[314527419,1708405841914,-500.0,0.00021917,2]
[314527421,1708405841923,-500.0,0.00021917,2]
[314527423,1708405841932,-500.0,0.00021917,2]
[314527425,1708405841940,-200.0,0.00021917,2]
[314527427,1708405841949,-638.50059309,0.00021917,2]
[314527429,1708405841961,-500.0,0.00021917,2]
[314527432,1708405841972,-500.36612508,0.00021917,2]
[314527434,1708405841981,-500.0,0.00021917,2]
[314527436,1708405841991,-500.0,0.00021917,2]
[314527438,1708405842000,-500.0,0.00021917,2]
[314527440,1708405842010,-533.17,0.00021917,2]
[314527442,1708405842021,-619.01631419,0.00021917,2]
[314527443,1708405842031,-500.0,0.00021917,2]
[314527445,1708405842041,-663.29,0.00021917,2]
[314527447,1708405842051,-1000.0,0.00021917,2]
[314527450,1708405842060,-500.0,0.00021917,2]
[314527452,1708405842070,-500.0,0.00021917,2]
[314527454,1708405842080,-7244.18,0.00021917,2]
[314527456,1708405842089,-500.0,0.00021917,2]
[314527458,1708405842098,-500.0,0.00021917,2]
[314527460,1708405842107,-500.0,0.00021917,2]
[314527462,1708405842117,-687.92,0.00021917,2]
[314527464,1708405842126,-1152.02,0.00021917,2]
[314527465,1708405842136,-500.0,0.00021917,2]
[314527468,1708405842146,-276.3982932,0.00021917,2]
[314527470,1708405842155,-500.0,0.00021917,2]
[314527472,1708405842164,-500.0,0.00021917,2]
[314527474,1708405842174,-500.0,0.00021917,2]
[314527475,1708405842183,-500.0,0.00021917,2]
[314527478,1708405842192,-3230.82,0.00021917,2]
[314527479,1708405842202,-500.0,0.00021917,2]
[314527481,1708405842211,-500.0,0.00021917,2]
[314527484,1708405842220,-500.0,0.00021917,2]
[314527486,1708405842229,-500.0,0.00021917,2]
[314527487,1708405842238,-506.0307741,0.00021917,2]
[314527489,1708405842248,-500.0,0.00021917,2]
[314527491,1708405842257,-607.01,0.00021917,2]
[314527493,1708405842266,-500.0,0.00021917,2]
[314527495,1708405842275,-500.0,0.00021917,2]
[314527497,1708405842284,-500.0,0.00021917,2]
[314527499,1708405842293,-500.0,0.00021917,2]
[314527501,1708405842302,-500.0,0.00021917,2]
[314527504,1708405842312,-500.0,0.00021917,2]
[314527505,1708405842321,-200.91948973,0.00021917,2]
[314527508,1708405842331,-205.22485004,0.00021917,2]
[314527510,1708405842340,-500.0,0.00021917,2]
[314527512,1708405842350,-500.0,0.00021917,2]
[314527514,1708405842360,-500.0,0.00021917,2]
[314527515,1708405842369,-500.0,0.00021917,2]
[314527517,1708405842379,-500.0,0.00021917,2]
[314527519,1708405842389,-500.0,0.00021917,2]
[314527521,1708405842398,-500.0,0.00021917,2]
[314527523,1708405842408,-1288.82,0.00021917,2]
[314527525,1708405842417,-947.63,0.00021917,2]
[314527527,1708405842426,-789.51,0.00021917,2]
[314527529,1708405842435,-500.0,0.00021917,2]
[314527531,1708405842444,-500.0,0.00021917,2]
[314527533,1708405842453,-500.0,0.00021917,2]
[314527535,1708405842463,-500.0,0.00021917,2]
[314527537,1708405842472,-649.41414066,0.00021917,2]
[314527539,1708405842481,-2816.08,0.00021917,2]
[314527541,1708405842490,-500.0,0.00021917,2]
[314527543,1708405842500,-500.0,0.00021917,2]
[314527545,1708405842509,-367.6358618,0.00021917,2]
[314527547,1708405842519,-519.02,0.00021917,2]
[314527549,1708405842528,-500.0,0.00021917,2]
[314527551,1708405842538,-174.94062732,0.00021917,2]
[314527553,1708405842547,-500.0,0.00021917,2]
[314527555,1708405842556,-500.0,0.00021917,2]
[314527557,1708405842565,-500.0,0.00021917,2]
[314527559,1708405842574,-500.0,0.00021917,2]
[314527561,1708405842583,-500.0,0.00021917,2]
[314527563,1708405842593,-506.50249164,0.00021917,2]
[314527565,1708405842602,-500.0,0.00021917,2]
[314527568,1708405842611,-500.0,0.00021917,2]
[314527570,1708405842621,-500.0,0.00021917,2]
[314527572,1708405842631,-500.0,0.00021917,2]
[314527574,1708405842641,-357.91204103,0.00021917,2]
[314527576,1708405842651,-28107.42,0.00021917,2]
[314527577,1708405842660,-435.37974217,0.00021917,2]
[314527579,1708405842669,-500.21795266,0.00021917,2]
[314527582,1708405842679,-500.0,0.00021917,2]
[314527584,1708405842688,-151.0,0.00021917,2]
[314527586,1708405842697,-2876.33,0.00021917,2]
[314527588,1708405842707,-500.0,0.00021917,2]
[314527590,1708405842716,-500.0,0.00021917,2]
[314527591,1708405842726,-614.53,0.00021917,2]
[314527594,1708405842735,-500.0,0.00021917,2]
[314527596,1708405842744,-500.0,0.00021917,2]
[314527598,1708405842753,-500.0,0.00021917,2]
[314527599,1708405842762,-4181.93,0.00021917,2]
[314527601,1708405842771,-340.36999735,0.00021917,2]
[314527603,1708405842780,-1472.97,0.00021917,2]
[314527605,1708405842789,-500.0,0.00021917,2]
[314527607,1708405842798,-500.0,0.00021917,2]
[314527609,1708405842807,-500.0,0.00021917,2]
[314527611,1708405842816,-13204.9,0.00021917,2]
[314527614,1708405842826,-1318.63,0.00021917,2]
[314527616,1708405842835,-25239.43,0.00021917,2]
[314527618,1708405842844,-500.0,0.00021917,2]
[314527620,1708405842853,-502.39129394,0.00021917,2]
[314527622,1708405842862,-18018.24,0.00021917,2]
[314527624,1708405842871,-500.0,0.00021917,2]
[314527626,1708405842880,-501.91358117,0.00021917,2]
[314527628,1708405842890,-3786.03,0.00021917,2]
[314527630,1708405842899,-668.64,0.00021917,2]
[314527633,1708405842909,-500.0,0.00021917,2]
[314527635,1708405842918,-500.0,0.00021917,2]
[314527637,1708405842927,-5071.54,0.00021917,2]
[314527639,1708405842935,-500.0,0.00021917,2]
[314527641,1708405842944,-5084.08,0.00021917,2]
[314527643,1708405842953,-3796.27,0.00021917,2]
[314527646,1708405842967,-500.0,0.00021917,2]
[314527648,1708405842976,-500.0,0.00021917,2]
[314527650,1708405842985,-500.0,0.00021917,2]
[314527652,1708405842993,-500.0,0.00021917,2]
[314527654,1708405843003,-24064.33,0.00021917,2]
[314527656,1708405843012,-500.0,0.00021917,2]
[314527658,1708405843020,-588.91482314,0.00021917,2]
[314527659,1708405843030,-500.0,0.00021917,2]
[314527662,1708405843040,-500.0,0.00021917,2]
[314527663,1708405843050,-500.0,0.00021917,2]
[314527666,1708405843061,-500.0,0.00021917,2]
[314527667,1708405843070,-511.41914029,0.00021917,2]
[314527670,1708405843079,-500.0,0.00021917,2]
[314527672,1708405843088,-511.20067672,0.00021917,2]
[314527674,1708405843097,-2673.17,0.00021917,2]
[314527676,1708405843106,-500.0,0.00021917,2]
[314527678,1708405843115,-42107.15,0.00021917,2]
[314527679,1708405843124,-500.0,0.00021917,2]
[314527682,1708405843133,-500.0,0.00021917,2]
[314527683,1708405843144,-3756.72,0.00021917,2]
[314527685,1708405843153,-500.0,0.00021917,2]
[314527687,1708405843162,-500.0,0.00021917,2]
[314527690,1708405843171,-500.0,0.00021917,2]
[314527692,1708405843180,-500.0,0.00021917,2]
[314527693,1708405843190,-500.0,0.00021917,2]
[314527696,1708405843199,-500.0,0.00021917,2]
[314527697,1708405843208,-500.0,0.00021917,2]
[314527699,1708405843218,-1948.07,0.00021917,2]
[314527702,1708405843227,-249.27883109,0.00021917,2]
[314527704,1708405843237,-3991.04,0.00021917,2]
[314527706,1708405843246,-806.25,0.00021917,2]
[314527707,1708405843255,-500.0,0.00021917,2]
[314527710,1708405843265,-502.71166011,0.00021917,2]
[314527712,1708405843273,-604.35,0.00021917,2]
[314527714,1708405843282,-500.0,0.00021917,2]
[314527715,1708405843292,-500.0,0.00021917,2]
[314527717,1708405843301,-500.0,0.00021917,2]
[314527719,1708405843311,-500.0,0.00021917,2]
[314527721,1708405843320,-199.48520124,0.00021917,2]
[314527723,1708405843329,-3575.96,0.00021917,2]
[314527725,1708405843338,-3575.96,0.00021917,2]
[314527727,1708405843347,-3575.96,0.00021917,2]
[314527729,1708405843357,-500.0,0.00021917,2]
[314527735,1708405843398,-500.0,0.00021917,2]
[314527737,1708405843407,-3575.96,0.00021917,2]
[314527739,1708405843416,-3575.96,0.00021917,2]
[314527741,1708405843426,-3575.96,0.00021917,2]
[314527743,1708405843434,-500.0,0.00021917,2]
[314527745,1708405843443,-3575.96,0.00021917,2]
[314527747,1708405843452,-3575.96,0.00021917,2]
[314527749,1708405843461,-3575.96,0.00021917,2]
[314527751,1708405843470,-3575.96,0.00021917,2]
[314527753,1708405843478,-3575.96,0.00021917,2]
[314527754,1708405843487,-500.0,0.00021917,2]
[314527756,1708405843497,-3575.96,0.00021917,2]
[314527758,1708405843506,-1553.76,0.00021917,2]
[314527761,1708405843517,-3575.96,0.00021917,2]
[314527763,1708405843526,-3575.96,0.00021917,2]
[314527764,1708405843535,-3575.96,0.00021917,2]
[314527766,1708405843544,-3575.96,0.00021917,2]
[314527768,1708405843553,-3575.96,0.00021917,2]
[314527770,1708405843562,-3575.96,0.00021917,2]
[314527772,1708405843571,-254.20190655,0.00021917,2]
[314527774,1708405843580,-3575.96,0.00021917,2]
[314527776,1708405843590,-3575.96,0.00021917,2]
[314527778,1708405843601,-3575.96,0.00021917,2]
[314527781,1708405843610,-3575.96,0.00021917,2]
[314527782,1708405843620,-3575.96,0.00021917,2]
[314527784,1708405843629,-4616.31,0.00021917,2]
[314527786,1708405843638,-3575.97427655,0.00021917,2]
[314527788,1708405843647,-526.19,0.00021917,2]
[314527790,1708405843656,-500.0,0.00021917,2]
[314527793,1708405843665,-500.0,0.00021917,2]
[314527795,1708405843675,-500.0,0.00021917,2]
[314527796,1708405843683,-500.0,0.00021917,2]
[314527798,1708405843692,-500.0,0.00021917,2]
[314527800,1708405843701,-549.53201664,0.00021917,2]
[314527840,1708405844101,-179.54,0.00021907,3]
[314527841,1708405844109,-69.18872051,0.00021917,2]
[314527842,1708405844118,-521.16769814,0.00021917,2]
[314527843,1708405844127,-500.0,0.00021917,2]
[314527844,1708405844137,-500.0,0.00021917,2]
[314527845,1708405844146,-500.0,0.00021917,2]
[314527846,1708405844154,-1356.11,0.00021917,2]
[314527847,1708405844163,-235.64877881,0.00021917,2]
[314527848,1708405844172,-500.0,0.00021917,2]
[314527849,1708405844180,-689.26,0.00021917,2]
[314527850,1708405844189,-500.0,0.00021917,2]
[314527851,1708405844198,-500.0,0.00021917,2]
[314527852,1708405844206,-945.09,0.00021917,2]
[314527853,1708405844215,-500.0,0.00021917,2]
[314527854,1708405844224,-500.0,0.00021917,2]
[314527855,1708405844233,-500.0,0.00021917,2]
[314527856,1708405844242,-674.07,0.00021917,2]
[314527857,1708405844250,-500.0,0.00021917,2]
[314527858,1708405844259,-516.8224327,0.00021917,2]
[314527859,1708405844269,-944.16,0.00021917,2]
[314527860,1708405844278,-2331.92,0.00021917,2]
[314527862,1708405844287,-613.36,0.00021917,2]
[314527863,1708405844296,-500.0,0.00021917,2]
[314527865,1708405844304,-831.5,0.00021917,2]
[314527867,1708405844314,-500.0,0.00021917,2]
[314527869,1708405844324,-500.0,0.00021917,2]
[314527872,1708405844333,-393.80992701,0.00021917,2]
[314527873,1708405844342,-500.0,0.00021917,2]
[314527876,1708405844351,-500.0,0.00021917,2]
[314527878,1708405844361,-500.0,0.00021917,2]
[314527880,1708405844371,-169.84248541,0.00021917,2]
[314527882,1708405844379,-500.0,0.00021917,2]
[314527884,1708405844389,-4965.52,0.00021917,2]
[314527886,1708405844398,-512.81045093,0.00021917,2]
[314527888,1708405844408,-6105.74,0.00021917,2]
[314527890,1708405844417,-1458.19,0.00021917,2]
[314527891,1708405844428,-500.0,0.00021917,2]
[314527893,1708405844437,-500.0,0.00021917,2]
[314527895,1708405844446,-500.0,0.00021917,2]
[314527897,1708405844455,-500.0,0.00021917,2]
[314527900,1708405844465,-595.44,0.00021917,2]
[314527902,1708405844475,-380.04705514,0.00021917,2]
[314527904,1708405844484,-500.0,0.00021917,2]
[314527905,1708405844494,-5836.428388,0.00021918,2]
[314527907,1708405844504,-428.03452617,0.00022,2]
[314527910,1708405844513,-2133.23160772,0.00022,2]
[314527912,1708405844523,-855.466484,0.00022,4]
[314527914,1708405844532,-307.1420548,0.00022,2]
[314527916,1708405844541,-153.4646701,0.00022,2]
[314527918,1708405844551,-153.0,0.00022,2]
[314527920,1708405844560,-200.3836123,0.00022,2]
[314527922,1708405844569,-306.0,0.00022,2]
[314527924,1708405844578,-153.0,0.00022,2]
[314527926,1708405844588,-200.3836121,0.00022,2]
[314527928,1708405844597,-153.0,0.00022,2]
[314527930,1708405844607,-200.3836123,0.00022,2]
[314527932,1708405844616,-153.0,0.00022,2]
[314527934,1708405844626,-153.0,0.00022,2]
[314527936,1708405844635,-153.0,0.00022,2]
[314527938,1708405844644,-153.0,0.00022,2]
[314527940,1708405844656,-200.3836121,0.00022,2]
[314527942,1708405844665,-153.0,0.000221,2]
[314527944,1708405844675,-190.36790343,0.00022147,2]
[314527946,1708405844684,-300.0,0.00022148,2]
[314527948,1708405844694,-273.19736919,0.00022189,2]
[314527950,1708405844703,-515.69550303,0.00022191,2]
[314527952,1708405844712,-500.0,0.00022191,2]
[314527954,1708405844721,-500.0,0.00022191,2]
[314527956,1708405844730,-500.0,0.00022191,2]
[314527958,1708405844739,-500.0,0.00022191,2]
[314527960,1708405844749,-500.0,0.00022191,2]
[314527962,1708405844758,-500.0,0.00022191,2]
[314527964,1708405844767,-500.0,0.00022191,2]
[314527966,1708405844776,-500.0,0.00022191,2]
[314527968,1708405844785,-500.0,0.00022191,2]
[314527970,1708405844794,-868.29775382,0.00022191,2]
[314527972,1708405844803,-500.0,0.00022191,2]
[314527974,1708405844812,-545.66,0.00022191,2]
[314527976,1708405844824,-212.24927275,0.00022191,2]
[314527978,1708405844833,-500.0,0.00022191,2]
[314527980,1708405844842,-500.0,0.00022191,2]
[314527982,1708405844851,-398.83987873,0.00022191,2]
[314527984,1708405844860,-500.0,0.00022191,2]
[314527986,1708405844869,-500.0,0.00022191,2]
[314527988,1708405844879,-572.70809033,0.00022191,2]
[314527990,1708405844888,-590.22,0.00022191,2]
[314527992,1708405844897,-500.0,0.00022191,2]
[314527994,1708405844908,-500.0,0.00022191,2]
[314527996,1708405844917,-500.0,0.00022191,2]
[314527998,1708405844926,-572.07,0.00022191,2]
[314528000,1708405844935,-500.0,0.00022191,2]
[314528003,1708405844945,-500.0,0.00022191,2]
[314528005,1708405844955,-500.0,0.00022191,2]
[314528007,1708405844967,-500.0,0.00022191,2]
[314528009,1708405844977,-501.05169598,0.00022191,2]
[314528011,1708405844986,-500.0,0.00022191,2]
[314528013,1708405844995,-542.05827476,0.00022191,2]
[314528015,1708405845004,-1286.21,0.00022191,2]
[314528017,1708405845013,-500.0,0.00022191,2]
[314528019,1708405845022,-500.0,0.00022191,2]
[314528021,1708405845032,-170.65167912,0.00022191,2]
[314536696,1708406981804,1900.0,0.000172,2]
[314536739,1708407032569,-259.0,0.00019999,2]
[314536740,1708407032579,-394.00729392,0.0002,2]
[314536753,1708407038683,-1601.43142999,0.0002,2]
[314536758,1708407038754,-26721.56127609,0.0002,2]
[314536760,1708407038764,-2312.8,0.00020118,3]
[314536762,1708407038774,-1927.33,0.00020118,3]
[314536764,1708407038784,-2443.46814963,0.00020128,2]
[314536766,1708407038794,-1813.31649527,0.00020128,2]
[314536769,1708407038804,-67898.45815146,0.00020128,2]
[314536771,1708407038814,-9582.5412698,0.00020128,2]
[314536773,1708407038825,-303.90743694,0.00021717,2]
[314536775,1708407038835,-303.9074369,0.00021742,2]
[314536777,1708407038844,-303.9074369,0.00021767,2]
[314536779,1708407038856,-303.9074369,0.00021792,2]
[314536781,1708407038866,-500.0,0.000218,2]
[314536783,1708407038876,-14618.69095519,0.00021817,2]
[314536785,1708407038885,-998.987892,0.00021817,2]
[314536787,1708407038895,-303.9074369,0.00021817,2]
[314536789,1708407038905,-1007.028755,0.000219,2]
[314536791,1708407038914,-203.1600239,0.000219,2]
[314536793,1708407038924,-286.12858253,0.00021916,2]
[314536795,1708407038933,-334.1548573,0.00021916,2]
[314536797,1708407038943,-500.0,0.00021916,2]
[314536799,1708407038953,-500.0,0.00021916,2]
[314536801,1708407038962,-500.0,0.00021916,2]
[314536803,1708407038975,-500.0,0.00021916,2]
[314536805,1708407038984,-500.0,0.00021916,2]
[314536807,1708407038994,-500.0,0.00021916,2]
[314536809,1708407039003,-500.0,0.00021916,2]
[314536811,1708407039012,-500.0,0.00021916,2]
[314536813,1708407039022,-296.81171669,0.00021916,2]
[314536815,1708407039032,-500.0,0.00021916,2]
[314536817,1708407039041,-500.0,0.00021916,2]
[314536819,1708407039051,-500.0,0.00021916,2]
[314536821,1708407039061,-500.0,0.00021916,2]
[314536823,1708407039070,-500.0,0.00021916,2]
[314536825,1708407039080,-500.0,0.00021916,2]
[314536827,1708407039090,-164.86675073,0.00021916,2]
[314536829,1708407039099,-500.0,0.00021916,2]
[314536832,1708407039114,-500.0,0.00021916,2]
[314536834,1708407039124,-500.0,0.00021916,2]
[314536836,1708407039133,-500.0,0.00021916,2]
[314536838,1708407039142,-500.0,0.00021916,2]
[314536840,1708407039151,-500.0,0.00021916,2]
[314536842,1708407039161,-500.0,0.00021916,2]
[314536844,1708407039170,-500.0,0.00021916,2]
[314536846,1708407039180,-500.0,0.00021916,2]